[Event "CZE-tht Extraliga 2018-19"]
[Site "Czech Republic"]
[Date "2019.02.10"]
[Round "8.8"]
[White "Studnicka, Tomas"]
[Black "Kanok, Jaroslav"]
[Result "1-0"]
[ECO "A40"]
[WhiteElo "2315"]
[BlackElo "2146"]
[Annotator "NA"]
[PlyCount "71"]
[EventDate "2018.11.03"]
[EventType "team-tourn"]
[EventCountry "CZE"]
[SourceTitle "playchess.com"]
[Source "ChessBase"]
[SourceQuality "1"]
[WhiteTeam "Turnov"]
[BlackTeam "Ostrava"]
[TimeControl "40/5400+30:1800+30"]

1. d4 {[%emt 0:00:00]} e6 {[%emt 0:00:00]} 2. Bf4 {[%emt 0:00:13]} d5 {[%emt 0:01:04]} 3. e3 {[%emt 0:00:06]} c5 {[%emt 0:00:41]} 4. c3 {[%emt 0:00:03]} Nc6 {[%emt 0:01:43]} 5. Nd2 {[%emt 0:00:24]} cxd4 {[%emt 0:00:09]} 6. exd4 {[%emt 0:00:07]} Nf6 {[%emt 0:01:17]} 7. Ngf3 {[%emt 0:00:42]} Be7 {[%emt 0:01:30]} 8. Bd3 {[%emt 0:00:11]} Nh5 {[%emt 0:12:44]} 9. Be3 {[%emt 0:01:14]} Qc7 {[%emt 0:01:45]} 10. O-O {[%emt 0:01:51]} Bd7 {[%emt 0:11:49]} 11. Re1 {[%emt 0:04:08]} h6 {[%emt 0:15:31]} 12. Rc1 {[%emt 0:05:08]} Rd8 {[%emt 0:07:55]} 13. Nf1 {[%emt 0:01:25]} a6 {[%emt 0:12:13]} 14. Bb1 {[%emt 0:10:19]} b5 {[%emt 0:04:16]} 15. Ne5 {[%emt 0:03:34]} Nxe5 {[%emt 0:02:31]} 16. dxe5 {[%emt 0:00:07]} g6 {[%emt 0:00:06]} 17. Qd2 {[%emt 0:01:04]} g5 {[%emt 0:03:03]} 18. Qd1 {[%emt 0:05:00]} Ng7 {[%emt 0:00:40]} 19. Bd4 {[%emt 0:00:13]} Qb7 {[%emt 0:00:43]} 20. Ne3 {[%emt 0:00:42]} h5 {[%emt 0:01:00]} 21. Rf1 {[%emt 0:03:46]} b4 {[%emt 0:01:52]} 22. f4 {[%emt 0:01:24]} bxc3 {[%emt 0:00:22]} 23. bxc3 {[%emt 0:00:11]} gxf4 {[%emt 0:01:23]} 24. Rxf4 {[%emt 0:00:05]} Bg5 {[%emt 0:00:17]} 25. Rf2 {[%emt 0:01:43]} Rc8 {[%emt 0:13:14]} 26. Qf3 {[%emt 0:02:56]} Bb5 {[%emt 0:00:32]} 27. Qg3 {[%emt 0:00:52]} Qe7 {[%emt 0:00:18]} 28. Rf6 {[%emt 0:02:08]} Bxe3+ {[%emt 0:01:26]} 29. Bxe3 {[%emt 0:02:12]} Nf5 {[%emt 0:00:18]} 30. Bxf5 {[%emt 0:00:38]} exf5 {[%emt 0:00:06]} 31. Bd4 {[%emt 0:00:24]} Bd7 {[%emt 0:02:27]} 32. e6 {[%emt 0:06:00]} fxe6 {[%emt 0:00:09]} 33. Qg6+ {[%emt 0:00:33]} Kd8 {[%emt 0:00:35]} 34. Rf7 {[%emt 0:00:07]} Qa3 {[%emt 0:00:15]} 35. Rb1 {[%emt 0:00:04]} Rxc3 {[%emt 0:00:51]} 36. Qf6+ {[%emt 0:00:32]} 1-0

[Event "CZE-tht Extraliga 2018-19"]
[Site "Czech Republic"]
[Date "2019.02.10"]
[Round "8.8"]
[White "Vyskocil, Neklan"]
[Black "Chmel, Kristian"]
[Result "1-0"]
[ECO "D80"]
[WhiteElo "2295"]
[BlackElo "2119"]
[Annotator "NA"]
[PlyCount "119"]
[EventDate "2018.11.03"]
[EventType "team-tourn"]
[EventCountry "CZE"]
[SourceTitle "playchess.com"]
[Source "ChessBase"]
[SourceQuality "1"]
[WhiteTeam "Duras"]
[BlackTeam "Siesta B"]
[TimeControl "40/5400+30:1800+30"]

1. d4 {[%emt 0:00:00]} Nf6 {[%emt 0:00:00]} 2. c4 {[%emt 0:00:27]} g6 {[%emt 0:00:00]} 3. Nc3 {[%emt 0:00:52]} d5 {[%emt 0:00:00]} 4. Qa4+ {[%emt 0:02:58]} Bd7 {[%emt 0:09:19]} 5. Qb3 {[%emt 0:01:45]} dxc4 {[%emt 0:02:52]} 6. Qxc4 {[%emt 0:00:31]} Bg7 {[%emt 0:02:01]} 7. e4 {[%emt 0:00:47]} b5 {[%emt 0:24:05]} 8. Nxb5 {[%emt 0:03:00]} Nxe4 {[%emt 0:09:33]} 9. Nxc7+ {[%emt 0:08:20]} Kf8 {[%emt 0:01:12]} 10. Nxa8 {[%emt 0:09:11]} Nc6 {[%emt 0:18:17]} 11. Nf3 {[%emt 0:05:01]} Qa5+ {[%emt 0:11:22]} 12. Bd2 {[%emt 0:05:12]} Nxd2 {[%emt 0:05:29]} 13. Nxd2 {[%emt 0:00:30]} Bxd4 {[%emt 0:02:16]} 14. Be2 {[%emt 0:02:32]} Kg7 {[%emt 0:05:26]} 15. Rd1 {[%emt 0:02:59]} Rxa8 {[%emt 0:02:30]} 16. O-O {[%emt 0:00:20]} Qb6 {[%emt 0:01:42]} 17. Nf3 {[%emt 0:08:05]} Be6 {[%emt 0:00:30]} 18. Qa4 {[%emt 0:04:53]} Bf6 {[%emt 0:00:38]} 19. b3 {[%emt 0:01:17]} Rb8 {[%emt 0:01:37]} 20. Bc4 {[%emt 0:02:53]} Bg4 {[%emt 0:00:32]} 21. Bd5 {[%emt 0:02:45]} Nb4 {[%emt 0:00:34]} 22. Be4 {[%emt 0:02:58]} Bc8 {[%emt 0:00:22]} 23. Nd2 {[%emt 0:08:59]} Na6 {[%emt 0:00:39]} 24. Nc4 {[%emt 0:00:47]} Qc7 {[%emt 0:00:22]} 25. Bf3 {[%emt 0:01:59]} Nc5 {[%emt 0:00:31]} 26. Qc6 {[%emt 0:02:32]} Qxc6 {[%emt 0:00:32]} 27. Bxc6 {[%emt 0:00:04]} Ba6 {[%emt 0:00:25]} 28. Rd5 {[%emt 0:01:49]} Ne6 {[%emt 0:00:38]} 29. Ra5 {[%emt 0:01:46]} Bxc4 {[%emt 0:00:30]} 30. bxc4 {[%emt 0:00:16]} Bd4 {[%emt 0:00:11]} 31. Rb5 {[%emt 0:02:25]} Rd8 {[%emt 0:00:37]} 32. Rb7 {[%emt 0:04:24]} Kf6 {[%emt 0:00:09]} 33. g3 {[%emt 0:04:42]} Bc5 {[%emt 0:00:42]} 34. Rd7 {[%emt 0:02:25]} Rb8 {[%emt 0:00:06]} 35. Rb7 {[%emt 0:02:05]} Rd8 {[%emt 0:00:07]} 36. Rd7 {[%emt 0:03:27]} Rb8 {[%emt 0:00:06]} 37. Rfd1 {[%emt 0:01:03]} Rb6 {[%emt 0:01:04]} 38. Bd5 {[%emt 0:00:55]} Nd4 {[%emt 0:01:29]} 39. Rc7 {[%emt 0:01:14]} Ne2+ {[%emt 0:00:29]} 40. Kf1 {[%emt 0:00:57]} Nc3 {[%emt 0:00:27]} 41. Rd3 {[%emt 0:02:37]} Rb1+ {[%emt 0:10:17]} 42. Kg2 {[%emt 0:00:32]} Nxd5 {[%emt 0:00:27]} 43. Rxc5 {[%emt 0:02:06]} Nb6 {[%emt 0:01:44]} 44. Rf3+ {[%emt 0:01:27]} Ke6 {[%emt 0:00:44]} 45. Rc7 {[%emt 0:00:25]} Kd6 {[%emt 0:02:35]} 46. Rxa7 {[%emt 0:00:47]} Nxc4 {[%emt 0:00:10]} 47. Rxf7 {[%emt 0:01:31]} e5 {[%emt 0:00:46]} 48. Rxh7 {[%emt 0:01:29]} Rb2 {[%emt 0:00:52]} 49. Ra6+ {[%emt 0:02:20]} Kd5 {[%emt 0:01:55]} 50. Rd7+ {[%emt 0:00:11]} Kc5 {[%emt 0:00:27]} 51. Rc7+ {[%emt 0:00:31]} Kd5 {[%emt 0:01:00]} 52. Rxc4 {[%emt 0:01:25]} Kxc4 {[%emt 0:00:09]} 53. Rxg6 {[%emt 0:00:23]} Rxa2 {[%emt 0:00:16]} 54. h4 {[%emt 0:00:50]} Kd5 {[%emt 0:01:21]} 55. Rg8 {[%emt 0:00:12]} Ke6 {[%emt 0:00:33]} 56. h5 {[%emt 0:04:34]} Kf7 {[%emt 0:01:06]} 57. Rg4 {[%emt 0:00:31]} Ra6 {[%emt 0:00:55]} 58. Rg5 {[%emt 0:01:20]} Re6 {[%emt 0:00:51]} 59. Kf3 {[%emt 0:00:31]} Re8 {[%emt 0:00:54]} 60. Ke4 {[%emt 0:00:19]} 1-0

[Event "CZE-tht Extraliga 2018-19"]
[Site "Czech Republic"]
[Date "2019.02.10"]
[Round "8.8"]
[White "Rosko, Lubos"]
[Black "Sharashenidze, Akaki"]
[Result "1/2-1/2"]
[ECO "D10"]
[WhiteElo "2276"]
[BlackElo "2367"]
[Annotator "NA"]
[PlyCount "58"]
[EventDate "2018.11.03"]
[EventType "team-tourn"]
[EventCountry "CZE"]
[SourceTitle "playchess.com"]
[Source "ChessBase"]
[SourceQuality "1"]
[WhiteTeam "Pardubice"]
[BlackTeam "Poruba"]
[TimeControl "40/5400+30:1800+30"]

1. d4 {[%emt 0:00:00]} d5 {[%emt 0:00:00]} 2. c4 {[%emt 0:00:00]} c6 {[%emt 0:00:00]} 3. cxd5 {[%emt 0:00:00]} cxd5 {[%emt 0:00:00]} 4. Nc3 {[%emt 0:00:03]} Nf6 {[%emt 0:00:00]} 5. Bf4 {[%emt 0:00:08]} e6 {[%emt 0:04:15]} 6. e3 {[%emt 0:06:00]} a6 {[%emt 0:00:41]} 7. Nf3 {[%emt 0:00:57]} Be7 {[%emt 0:02:01]} 8. Bd3 {[%emt 0:00:49]} O-O {[%emt 0:00:06]} 9. Rc1 {[%emt 0:00:26]} Nc6 {[%emt 0:02:12]} 10. O-O {[%emt 0:09:05]} Bd7 {[%emt 0:08:10]} 11. Ne5 {[%emt 0:06:13]} Rc8 {[%emt 0:04:24]} 12. a3 {[%emt 0:02:49]} Be8 {[%emt 0:17:01]} 13. Bb1 {[%emt 0:13:43]} Nd7 {[%emt 0:05:25]} 14. Qd3 {[%emt 0:03:30]} f5 {[%emt 0:00:24]} 15. Nxc6 {[%emt 0:00:33]} Rxc6 {[%emt 0:00:14]} 16. Ne2 {[%emt 0:08:51]} Nf6 {[%emt 0:06:26]} 17. Be5 {[%emt 0:02:38]} g5 {[%emt 0:02:13]} 18. Rxc6 {[%emt 0:01:45]} Bxc6 {[%emt 0:00:03]} 19. Rc1 {[%emt 0:02:10]} Ne4 {[%emt 0:14:32]} 20. Qd1 {[%emt 0:01:27]} Nd6 {[%emt 0:04:00]} 21. Bd3 {[%emt 0:05:10]} Nc4 {[%emt 0:02:46]} 22. Bxc4 {[%emt 0:09:46]} dxc4 {[%emt 0:00:05]} 23. f3 {[%emt 0:00:16]} b5 {[%emt 0:01:05]} 24. Ng3 {[%emt 0:01:21]} Bd6 25. Bxd6 Qxd6 26. b3 f4 27. exf4 gxf4 28. Ne2 Bd5 29. b4 Bc6 1/2-1/2

[Event "CZE-tht Extraliga 2018-19"]
[Site "Czech Republic"]
[Date "2019.02.10"]
[Round "8.8"]
[White "Miturova, Magdalena"]
[Black "Smid, Miroslav"]
[Result "1-0"]
[ECO "C60"]
[WhiteElo "2224"]
[BlackElo "2265"]
[Annotator "NA"]
[PlyCount "75"]
[EventDate "2018.11.03"]
[EventType "team-tourn"]
[EventCountry "CZE"]
[SourceTitle "playchess.com"]
[Source "ChessBase"]
[SourceQuality "1"]
[WhiteTeam "Cesky Tesin"]
[BlackTeam "Siesta"]
[TimeControl "40/5400+30:1800+30"]

1. e4 {[%emt 0:00:00]} e5 {[%emt 0:00:31]} 2. Nf3 {[%emt 0:00:00]} Nc6 {[%emt 0:00:13]} 3. Bb5 {[%emt 0:00:00]} g6 {[%emt 0:00:14]} 4. c3 {[%emt 0:00:26]} Nge7 {[%emt 0:02:13]} 5. O-O {[%emt 0:01:36]} Bg7 {[%emt 0:00:35]} 6. d4 {[%emt 0:00:22]} exd4 {[%emt 0:00:13]} 7. cxd4 {[%emt 0:00:09]} d5 {[%emt 0:00:05]} 8. exd5 {[%emt 0:00:38]} Nxd5 {[%emt 0:00:08]} 9. Re1+ {[%emt 0:00:25]} Be6 {[%emt 0:00:07]} 10. Bg5 {[%emt 0:00:45]} Qd6 {[%emt 0:00:09]} 11. Nbd2 {[%emt 0:00:21]} O-O {[%emt 0:00:26]} 12. Ne4 {[%emt 0:01:15]} Qb4 {[%emt 0:00:38]} 13. Bxc6 {[%emt 0:00:13]} bxc6 {[%emt 0:00:07]} 14. Qc1 {[%emt 0:02:02]} Qb5 {[%emt 0:11:15]} 15. Nc5 {[%emt 0:15:50]} Bf5 {[%emt 0:05:08]} 16. a4 {[%emt 0:05:54]} Qb6 {[%emt 0:09:04]} 17. Ra3 {[%emt 0:11:32]} a5 {[%emt 0:05:27]} 18. Rb3 {[%emt 0:07:19]} Nb4 {[%emt 0:00:38]} 19. Bh6 {[%emt 0:02:33]} Rad8 {[%emt 0:09:38]} 20. Bxg7 {[%emt 0:03:30]} Kxg7 {[%emt 0:00:35]} 21. Qf4 {[%emt 0:04:58]} Rfe8 {[%emt 0:08:14]} 22. Rc1 {[%emt 0:16:36]} Rd6 {[%emt 0:12:32]} 23. Ne5 {[%emt 0:02:17]} Red8 {[%emt 0:11:27]} 24. Nf3 {[%emt 0:07:21]} Rf6 {[%emt 0:03:33]} 25. Qh4 {[%emt 0:03:09]} h6 {[%emt 0:03:41]} 26. g4 {[%emt 0:04:16]} g5 {[%emt 0:03:42]} 27. Qg3 {[%emt 0:03:25]} Bc8 {[%emt 0:02:49]} 28. Qe5 {[%emt 0:06:05]} Rd5 {[%emt 0:00:58]} 29. Qe8 {[%emt 0:00:51]} Bxg4 {[%emt 0:00:27]} 30. Ne5 {[%emt 0:00:07]} Rxd4 {[%emt 0:01:56]} 31. Rg3 {[%emt 0:00:47]} Na2 {[%emt 0:03:32]} 32. Nxg4 {[%emt 0:00:39]} Rxg4 {[%emt 0:00:40]} 33. Rxg4 {[%emt 0:00:28]} Nxc1 {[%emt 0:00:02]} 34. Qe5 {[%emt 0:00:30]} Ne2+ {[%emt 0:01:07]} 35. Kh1 {[%emt 0:01:11]} Nf4 {[%emt 0:03:41]} 36. Nd7 {[%emt 0:00:00]} Qxf2 {[%emt 0:00:06]} 37. Qxf6+ {[%emt 0:00:00]} Kg8 {[%emt 0:00:40]} 38. Qxc6 {[%emt 0:00:52]} 1-0

[Event "CZE-tht Extraliga 2018-19"]
[Site "Czech Republic"]
[Date "2019.04.19"]
[Round "9.1"]
[White "Balogh, Csaba"]
[Black "Sadzikowski, Daniel"]
[Result "1/2-1/2"]
[ECO "B13"]
[WhiteElo "2610"]
[BlackElo "2523"]
[Annotator "RC"]
[PlyCount "79"]
[EventDate "2018.11.03"]
[EventType "team-tourn"]
[EventCountry "CZE"]
[SourceTitle "playchess.com"]
[Source "ChessBase"]
[SourceQuality "1"]
[WhiteTeam "Brno"]
[BlackTeam "Duras"]
[TimeControl "40/5400+30:1800+30"]

1. e4 {[%emt 0:00:00]} c6 {[%emt 0:00:00]} 2. d4 {[%emt 0:02:34]} d5 {[%emt 0:00:00]} 3. exd5 {[%emt 0:01:34]} cxd5 {[%emt 0:00:00]} 4. Bd3 {[%emt 0:00:06]} Nc6 {[%emt 0:00:00]} 5. c3 {[%emt 0:00:07]} Nf6 {[%emt 0:00:49]} 6. h3 {[%emt 0:06:43]} g6 {[%emt 0:00:11]} 7. Nf3 {[%emt 0:00:36]} Bf5 {[%emt 0:00:24]} 8. Be2 {[%emt 0:02:21]} Qc7 {[%emt 0:00:04]} 9. O-O {[%emt 0:00:21]} Bg7 {[%emt 0:00:03]} 10. Re1 {[%emt 0:03:53]} h6 {[%emt 0:02:48]} 11. Nbd2 {[%emt 0:03:04]} g5 {[%emt 0:08:37]} 12. Nf1 {[%emt 0:03:10]} e6 {[%emt 0:04:54]} 13. Ng3 {[%emt 0:01:22]} O-O-O {[%emt 0:05:42]} 14. Nxf5 {[%emt 0:16:40]} exf5 {[%emt 0:00:06]} 15. Bd3 {[%emt 0:00:11]} Ne4 {[%emt 0:01:13]} 16. Nh2 {[%emt 0:02:43]} Rhe8 {[%emt 0:17:43]} 17. Nf1 {[%emt 0:00:44]} f4 {[%emt 0:00:59]} 18. f3 {[%emt 0:00:23]} Nd6 {[%emt 0:00:27]} 19. Rxe8 {[%emt 0:07:29]} Rxe8 {[%emt 0:00:12]} 20. Qb3 {[%emt 0:00:07]} Ne7 {[%emt 0:06:01]} 21. Bd2 {[%emt 0:00:31]} Bf6 {[%emt 0:01:36]} 22. Re1 {[%emt 0:06:44]} Rg8 {[%emt 0:02:26]} 23. Bc1 {[%emt 0:12:33]} Kb8 {[%emt 0:02:57]} 24. a4 {[%emt 0:01:12]} Qd7 {[%emt 0:06:26]} 25. a5 {[%emt 0:03:01]} Ndf5 {[%emt 0:02:30]} 26. a6 {[%emt 0:01:36]} b6 {[%emt 0:00:09]} 27. Qc2 {[%emt 0:01:59]} h5 {[%emt 0:01:04]} 28. Nh2 {[%emt 0:02:23]} Nh4 {[%emt 0:04:06]} 29. Qe2 {[%emt 0:01:01]} Nef5 {[%emt 0:00:55]} 30. Bb5 {[%emt 0:00:27]} Qc8 {[%emt 0:05:02]} 31. Ba4 {[%emt 0:02:34]} Nd6 {[%emt 0:02:15]} 32. Qd3 {[%emt 0:01:27]} Nhf5 {[%emt 0:01:16]} 33. b3 {[%emt 0:01:54]} Qc7 {[%emt 0:03:27]} 34. Ba3 {[%emt 0:00:14]} Rc8 {[%emt 0:10:54]} 35. Bb4 {[%emt 0:00:08]} Ka8 {[%emt 0:00:28]} 36. Nf1 {[%emt 0:03:09]} Rb8 {[%emt 0:02:05]} 37. Bb5 {[%emt 0:00:46]} Rd8 {[%emt 0:00:52]} 38. Ba4 {[%emt 0:03:57]} Rb8 {[%emt 0:00:22]} 39. Bb5 {[%emt 0:02:11]} Rd8 {[%emt 0:00:10]} 40. Ba4 {[%emt 0:03:30]} 1/2-1/2

[Event "CZE-tht Extraliga 2018-19"]
[Site "Czech Republic"]
[Date "2019.04.19"]
[Round "9.1"]
[White "Miton, Kamil"]
[Black "Kempinski, Robert"]
[Result "1/2-1/2"]
[ECO "D73"]
[WhiteElo "2593"]
[BlackElo "2575"]
[Annotator "ChessBase"]
[PlyCount "35"]
[EventDate "2018.11.03"]
[EventType "team-tourn"]
[EventCountry "CZE"]
[SourceTitle "playchess.com"]
[Source "ChessBase"]
[SourceQuality "1"]
[WhiteTeam "Ostrava"]
[BlackTeam "Poruba"]
[TimeControl "40/5400+30:1800+30"]

1. d4 {[%emt 0:00:00]} Nf6 {[%emt 0:00:13]} 2. c4 {[%emt 0:00:00]} g6 {[%emt 0:02:01]} 3. Nf3 {[%emt 0:00:28]} Bg7 {[%emt 0:00:54]} 4. g3 {[%emt 0:00:09]} d5 {[%emt 0:03:46]} 5. Bg2 {[%emt 0:00:42]} dxc4 {[%emt 0:03:26]} 6. O-O {[%emt 0:01:24]} c6 {[%emt 0:02:50]} 7. a4 {[%emt 0:06:44]} O-O {[%emt 0:04:59]} 8. Na3 {[%emt 0:02:06]} Be6 {[%emt 0:04:21]} 9. Ng5 {[%emt 0:21:35]} Bd5 {[%emt 0:01:20]} 10. e4 {[%emt 0:00:53]} h6 {[%emt 0:00:18]} 11. exd5 {[%emt 0:00:13]} hxg5 {[%emt 0:00:11]} 12. dxc6 {[%emt 0:00:27]} Nxc6 {[%emt 0:00:14]} 13. Bxg5 {[%emt 0:00:58]} Qxd4 {[%emt 0:09:38]} 14. Bxc6 {[%emt 0:07:09]} Qxd1 {[%emt 0:00:44]} 15. Raxd1 {[%emt 0:00:06]} bxc6 {[%emt 0:00:11]} 16. Nxc4 {[%emt 0:00:06]} Nd5 {[%emt 0:00:44]} 17. Na5 {[%emt 0:06:14]} Bxb2 {[%emt 0:00:37]} 18. Nxc6 {[%emt 0:02:40]} 1/2-1/2

[Event "CZE-tht Extraliga 2018-19"]
[Site "Czech Republic"]
[Date "2019.04.19"]
[Round "9.3"]
[White "Hracek, Zbynek"]
[Black "Cyborowski, Lukasz"]
[Result "1-0"]
[ECO "C42"]
[WhiteElo "2585"]
[BlackElo "2517"]
[Annotator "ChessBase"]
[PlyCount "39"]
[EventDate "2018.11.03"]
[EventType "team-tourn"]
[EventCountry "CZE"]
[SourceTitle "playchess.com"]
[Source "ChessBase"]
[SourceQuality "1"]
[WhiteTeam "Pardubice"]
[BlackTeam "Turnov"]
[TimeControl "40/5400+30:1800+30"]

1. e4 {[%emt 0:00:00]} e5 {[%emt 0:00:10]} 2. Nf3 {[%emt 0:01:07]} Nf6 {[%emt 0:00:53]} 3. Nxe5 {[%emt 0:00:07]} d6 {[%emt 0:00:04]} 4. Nf3 {[%emt 0:00:05]} Nxe4 {[%emt 0:00:09]} 5. Nc3 {[%emt 0:00:02]} Nxc3 {[%emt 0:01:08]} 6. dxc3 {[%emt 0:01:38]} Be7 {[%emt 0:00:11]} 7. Be3 {[%emt 0:00:06]} O-O {[%emt 0:03:04]} 8. Qd2 {[%emt 0:00:17]} Nd7 {[%emt 0:00:15]} 9. O-O-O {[%emt 0:00:08]} Re8 {[%emt 0:00:14]} 10. Bd3 {[%emt 0:05:53]} Nf6 {[%emt 0:02:20]} 11. Rhe1 {[%emt 0:03:23]} Bd7 {[%emt 0:05:09]} 12. Bd4 {[%emt 0:02:55]} h6 {[%emt 0:30:57]} 13. c4 {[%emt 0:04:48]} c5 {[%emt 0:14:19]} 14. Bc3 {[%emt 0:05:40]} Bc6 {[%emt 0:02:07]} 15. Qf4 {[%emt 0:03:56]} Nh5 {[%emt 0:04:54]} 16. Qg4 {[%emt 0:08:10]} Nf6 {[%emt 0:01:14]} 17. Qh3 {[%emt 0:03:08]} Bf8 {[%emt 0:19:15]} 18. Qf5 Qc8 {[%emt 0:04:49]} 19. Rxe8 {[%emt 0:20:08]} Qxf5 {[%emt 0:00:08]} 20. Rxf8+ {[%emt 0:00:11]} 1-0

[Event "CZE-tht Extraliga 2018-19"]
[Site "Czech Republic"]
[Date "2019.04.19"]
[Round "9.3"]
[White "Tazbir, Marcin"]
[Black "Ponizil, Cyril"]
[Result "1/2-1/2"]
[ECO "B23"]
[WhiteElo "2540"]
[BlackElo "2501"]
[Annotator "ChessBase"]
[PlyCount "50"]
[EventDate "2018.11.03"]
[EventType "team-tourn"]
[EventCountry "CZE"]
[SourceTitle "playchess.com"]
[Source "ChessBase"]
[SourceQuality "1"]
[WhiteTeam "Brno"]
[BlackTeam "Duras"]
[TimeControl "40/5400+30:1800+30"]

1. e4 {[%emt 0:00:00]} c5 {[%emt 0:00:00]} 2. Nc3 {[%emt 0:01:07]} e6 {[%emt 0:00:00]} 3. Nf3 {[%emt 0:01:56]} a6 {[%emt 0:01:44]} 4. g3 {[%emt 0:00:51]} b5 {[%emt 0:00:10]} 5. Bg2 {[%emt 0:00:06]} Bb7 {[%emt 0:00:03]} 6. d3 {[%emt 0:01:26]} b4 {[%emt 0:02:06]} 7. Nb1 {[%emt 0:00:40]} Nf6 {[%emt 0:00:05]} 8. c4 {[%emt 0:04:00]} d6 {[%emt 0:02:27]} 9. O-O {[%emt 0:00:33]} Be7 {[%emt 0:01:35]} 10. Re1 {[%emt 0:03:07]} O-O {[%emt 0:01:10]} 11. Nbd2 {[%emt 0:00:29]} Nc6 {[%emt 0:00:11]} 12. Nf1 {[%emt 0:01:27]} a5 {[%emt 0:00:46]} 13. a4 {[%emt 0:05:34]} Nd7 {[%emt 0:01:53]} 14. h3 {[%emt 0:07:59]} Nde5 {[%emt 0:05:01]} 15. N3h2 {[%emt 0:05:55]} Nd4 {[%emt 0:00:05]} 16. f4 {[%emt 0:00:33]} Nec6 {[%emt 0:01:11]} 17. b3 {[%emt 0:00:42]} f5 {[%emt 0:04:17]} 18. Ne3 {[%emt 0:06:06]} Bf6 {[%emt 0:00:02]} 19. Rb1 {[%emt 0:01:00]} g6 {[%emt 0:08:55]} 20. Nd5 {[%emt 0:08:53]} Bg7 {[%emt 0:00:04]} 21. Nf3 {[%emt 0:07:25]} Nxf3+ {[%emt 0:17:16]} 22. Qxf3 {[%emt 0:01:31]} Kh8 {[%emt 0:06:20]} 23. Kh2 {[%emt 0:02:14]} Nd4 {[%emt 0:04:49]} 24. Qf2 {[%emt 0:01:20]} Ra7 {[%emt 0:00:08]} 25. Bb2 {[%emt 0:04:45]} Bxd5 {[%emt 0:00:25]} 1/2-1/2

[Event "CZE-tht Extraliga 2018-19"]
[Site "Czech Republic"]
[Date "2019.04.19"]
[Round "9.4"]
[White "Plat, Vojtech"]
[Black "Vrbata, Zbynek"]
[Result "1-0"]
[ECO "C06"]
[WhiteElo "2535"]
[BlackElo "2342"]
[Annotator "ChessBase"]
[PlyCount "61"]
[EventDate "2018.11.03"]
[EventType "team-tourn"]
[EventCountry "CZE"]
[SourceTitle "playchess.com"]
[Source "ChessBase"]
[SourceQuality "1"]
[WhiteTeam "Lysa nad Labem"]
[BlackTeam "Siesta B"]
[TimeControl "40/5400+30:1800+30"]

1. e4 {[%emt 0:00:00]} e6 {[%emt 0:00:00]} 2. d4 {[%emt 0:00:00]} d5 {[%emt 0:00:00]} 3. Nd2 {[%emt 0:00:00]} Nf6 {[%emt 0:00:00]} 4. e5 {[%emt 0:00:00]} Nfd7 {[%emt 0:00:02]} 5. Bd3 {[%emt 0:00:01]} c5 {[%emt 0:00:14]} 6. c3 {[%emt 0:00:05]} Nc6 {[%emt 0:00:11]} 7. Ne2 {[%emt 0:00:04]} cxd4 {[%emt 0:00:16]} 8. cxd4 {[%emt 0:00:05]} f6 {[%emt 0:00:16]} 9. Nf4 {[%emt 0:00:06]} Nxd4 {[%emt 0:00:48]} 10. Qh5+ {[%emt 0:00:06]} Ke7 {[%emt 0:00:19]} 11. exf6+ {[%emt 0:00:05]} Nxf6 {[%emt 0:00:40]} 12. Ng6+ {[%emt 0:00:03]} hxg6 {[%emt 0:00:17]} 13. Qxh8 {[%emt 0:00:04]} Kf7 {[%emt 0:00:24]} 14. Qh4 {[%emt 0:00:03]} e5 {[%emt 0:02:54]} 15. Nf3 {[%emt 0:00:13]} Nxf3+ {[%emt 0:03:52]} 16. gxf3 {[%emt 0:00:12]} Bf5 {[%emt 0:09:19]} 17. Bxf5 {[%emt 0:00:05]} gxf5 {[%emt 0:00:04]} 18. Bg5 {[%emt 0:00:05]} Qa5+ {[%emt 0:09:24]} 19. Kf1 {[%emt 0:00:33]} d4 {[%emt 0:22:10]} 20. Kg2 {[%emt 0:02:22]} Qd5 {[%emt 0:10:27]} 21. Bxf6 {[%emt 0:07:56]} gxf6 {[%emt 0:01:14]} 22. Qh5+ {[%emt 0:00:18]} Ke6 {[%emt 0:01:18]} 23. Rhg1 Bh6 {[%emt 0:03:19]} 24. Qxh6 {[%emt 0:03:08]} Rg8+ {[%emt 0:00:42]} 25. Kh3 {[%emt 0:00:09]} Qxf3+ {[%emt 0:00:49]} 26. Rg3 {[%emt 0:00:07]} Rxg3+ {[%emt 0:01:08]} 27. hxg3 {[%emt 0:00:10]} Qxf2 {[%emt 0:00:46]} 28. Qh5 {[%emt 0:02:11]} Qxb2 {[%emt 0:01:43]} 29. Qe8+ {[%emt 0:01:42]} Kd5 {[%emt 0:04:51]} 30. Qd7+ {[%emt 0:00:12]} Kc4 {[%emt 0:00:31]} 31. Rc1+ {[%emt 0:00:11] Kd5} 1-0

[Event "CZE-tht Extraliga 2018-19"]
[Site "Czech Republic"]
[Date "2019.04.19"]
[Round "9.4"]
[White "Zwardon, Vojtech"]
[Black "Piesik, Piotr"]
[Result "1/2-1/2"]
[ECO "A14"]
[WhiteElo "2458"]
[BlackElo "2420"]
[Annotator "RC"]
[PlyCount "72"]
[EventDate "2018.11.03"]
[EventType "team-tourn"]
[EventCountry "CZE"]
[SourceTitle "playchess.com"]
[Source "ChessBase"]
[SourceQuality "1"]
[WhiteTeam "Beskydska"]
[BlackTeam "Cesky Tesin"]
[TimeControl "40/5400+30:1800+30"]

1. c4 {[%emt 0:00:00]} Nf6 {[%emt 0:00:00]} 2. g3 {[%emt 0:00:00]} e6 {[%emt 0:00:15]} 3. Bg2 {[%emt 0:00:00]} d5 {[%emt 0:00:06]} 4. Nf3 {[%emt 0:00:00]} Be7 {[%emt 0:00:16]} 5. O-O {[%emt 0:00:01]} O-O {[%emt 0:00:06]} 6. b3 {[%emt 0:00:27]} d4 {[%emt 0:05:46]} 7. e3 {[%emt 0:02:14]} Nc6 {[%emt 0:02:00]} 8. exd4 {[%emt 0:03:56]} Nxd4 {[%emt 0:00:11]} 9. Bb2 {[%emt 0:00:16]} Bc5 {[%emt 0:06:17]} 10. Na3 {[%emt 0:02:27]} e5 {[%emt 0:11:52]} 11. Nc2 {[%emt 0:15:43]} Bg4 {[%emt 0:16:25]} 12. b4 {[%emt 0:00:56]} e4 {[%emt 0:08:40]} 13. Ncxd4 {[%emt 0:04:13]} Bxd4 {[%emt 0:00:21]} 14. Bxd4 {[%emt 0:00:06]} exf3 {[%emt 0:00:47]} 15. Bxf6 {[%emt 0:00:11]} Qxf6 {[%emt 0:00:25]} 16. Re1 {[%emt 0:00:13]} Rfe8 {[%emt 0:09:07]} 17. Bf1 {[%emt 0:00:51]} Rxe1 {[%emt 0:05:52]} 18. Qxe1 {[%emt 0:02:20]} Kf8 {[%emt 0:00:05]} 19. Rb1 {[%emt 0:00:31]} Re8 {[%emt 0:00:10]} 20. Qd1 {[%emt 0:00:06]} Qe6 {[%emt 0:12:16]} 21. h3 {[%emt 0:01:50]} Bxh3 {[%emt 0:03:13]} 22. Bxh3 {[%emt 0:00:12]} Qxh3 {[%emt 0:00:02]} 23. Qxf3 {[%emt 0:00:09]} b6 {[%emt 0:00:46]} 24. Qb7 {[%emt 0:03:26]} Qd7 {[%emt 0:02:12]} 25. Rb3 {[%emt 0:06:27]} h5 {[%emt 0:05:27]} 26. Re3 {[%emt 0:06:36]} Qxd2 {[%emt 0:03:20]} 27. Rxe8+ {[%emt 0:00:16]} Kxe8 {[%emt 0:00:01]} 28. Qxc7 {[%emt 0:00:13]} Qxb4 {[%emt 0:00:49]} 29. Qb8+ {[%emt 0:00:11]} Ke7 {[%emt 0:00:08]} 30. Qxa7+ {[%emt 0:00:12]} Kf6 {[%emt 0:00:05]} 31. Qc7 {[%emt 0:00:49]} g6 {[%emt 0:02:00]} 32. Kg2 {[%emt 0:01:32]} Ke6 {[%emt 0:04:47]} 33. a4 {[%emt 0:01:24]} Qd6 {[%emt 0:00:29]} 34. Qc8+ {[%emt 0:00:50]} Qd7 {[%emt 0:00:41]} 35. Qa8 {[%emt 0:01:38]} Kd6 {[%emt 0:01:11]} 36. Kg1 {[%emt 0:01:37]} Ke5 1/2-1/2